fUSD/lending_fUSD_20240420
["ID","MTS","AMOUNT","RATE_DAILY","PERIOD"]
[323035304,1713609056663,-1554.57,0.00015342,2]
[323035305,1713609056674,-500.0,0.00015342,2]
[323035306,1713609056684,-500.0,0.00015342,2]
[323035307,1713609056694,-151.0,0.00015342,2]
[323035308,1713609056704,-704.88,0.00015342,2]
[323035309,1713609056714,-500.0,0.00015342,2]
[323035310,1713609056724,-500.0,0.00015342,2]
[323035311,1713609056734,-604.98,0.00015342,2]
[323035312,1713609056745,-627.33,0.00015342,2]
[323035313,1713609056755,-500.0,0.00015342,2]
[323035314,1713609056766,-500.0,0.00015342,2]
[323035315,1713609056777,-500.0,0.00015342,2]
[323035316,1713609056789,-1218.26,0.00015342,2]
[323035317,1713609056799,-500.0,0.00015342,2]
[323035318,1713609056810,-1671.65,0.00015342,2]
[323035319,1713609056821,-500.0,0.00015342,2]
[323035320,1713609056831,-500.0,0.00015342,2]
[323035321,1713609056842,-593.65,0.00015342,2]
[323035322,1713609056852,-500.0,0.00015342,2]
[323035323,1713609056863,-500.0,0.00015342,2]
[323035324,1713609056873,-500.0,0.00015342,2]
[323035325,1713609056883,-500.0,0.00015342,2]
[323035326,1713609056894,-500.0,0.00015342,2]
[323035327,1713609056904,-500.0,0.00015342,2]
[323035328,1713609056915,-856.22,0.00015342,2]
[323035329,1713609056926,-908.91,0.00015342,2]
[323035330,1713609056936,-591.36,0.00015342,2]
[323035331,1713609056947,-818.72,0.00015342,2]
[323035332,1713609056958,-500.0,0.00015342,2]
[323035333,1713609056968,-721.28,0.00015342,2]
[323035334,1713609056979,-500.0,0.00015342,2]
[323035335,1713609056989,-500.0,0.00015342,2]
[323035336,1713609057000,-500.0,0.00015342,2]
[323035337,1713609057010,-500.0,0.00015342,2]
[323035338,1713609057021,-500.0,0.00015342,2]
[323035339,1713609057031,-500.0,0.00015342,2]
[323035340,1713609057043,-500.0,0.00015342,2]
[323035341,1713609057054,-500.0,0.00015342,2]
[323035342,1713609057065,-963.59,0.00015342,2]
[323035343,1713609057076,-1582.69,0.00015342,2]
[323035344,1713609057086,-500.0,0.00015342,2]
[323035345,1713609057097,-500.0,0.00015342,2]
[323035346,1713609057107,-500.0,0.00015342,2]
[323035347,1713609057119,-1678.97,0.00015342,2]
[323035348,1713609057130,-1414.73,0.00015342,2]
[323035349,1713609057141,-500.0,0.00015342,2]
[323035350,1713609057153,-500.0,0.00015342,2]
[323035351,1713609057164,-500.0,0.00015342,2]
[323035352,1713609057174,-500.0,0.00015342,2]
[323035353,1713609057185,-500.0,0.00015342,2]
[323035354,1713609057196,-705.53,0.00015342,2]
[323035355,1713609057206,-502.80113783,0.00015342,2]
[323035356,1713609057217,-982.29,0.00015342,2]
[323035357,1713609057228,-151.0,0.00015342,2]
[323035358,1713609057238,-1010.64,0.00015342,2]
[323035359,1713609057249,-783.75,0.00015342,2]
[323035360,1713609057260,-500.0,0.00015342,2]
[323035361,1713609057270,-500.0,0.00015342,2]
[323035362,1713609057281,-500.0,0.00015342,2]
[323035363,1713609057292,-1258.88,0.00015342,2]
[323035364,1713609057303,-722.99,0.00015342,2]
[323035365,1713609057314,-500.0,0.00015342,2]
[323035366,1713609057325,-500.0,0.00015342,2]
[323035367,1713609057336,-500.0,0.00015342,2]
[323035368,1713609057347,-500.0,0.00015342,2]
[323035369,1713609057358,-500.0,0.00015342,2]
[323035370,1713609057368,-500.0,0.00015342,2]
[323035371,1713609057379,-500.0,0.00015342,2]
[323035372,1713609057389,-1200.8,0.00015342,2]
[323035373,1713609057400,-687.85,0.00015342,2]
[323035374,1713609057410,-2110.88,0.00015342,2]
[323035375,1713609057421,-778.77,0.00015342,2]
[323035376,1713609057431,-500.0,0.00015342,2]
[323035377,1713609057441,-500.0,0.00015342,2]
[323035378,1713609057452,-500.0,0.00015342,2]
[323035379,1713609057463,-884.89,0.00015342,2]
[323035380,1713609057476,-500.0,0.00015342,2]
[323035381,1713609057487,-2561.72,0.00015342,2]
[323035382,1713609057497,-500.0,0.00015342,2]
[323035383,1713609057508,-500.0,0.00015342,2]
[323035384,1713609057519,-1130.07,0.00015342,2]
[323035385,1713609057530,-500.0,0.00015342,2]
[323035386,1713609057541,-500.0,0.00015342,2]
[323035387,1713609057552,-500.0,0.00015342,2]
[323035388,1713609057563,-562.16,0.00015342,2]
[323035389,1713609057573,-500.0,0.00015342,2]
[323035390,1713609057583,-500.0,0.00015342,2]
[323035391,1713609057593,-537.22,0.00015342,2]
[323035392,1713609057603,-500.0,0.00015342,2]
[323035393,1713609057614,-761.99,0.00015342,2]
[323035394,1713609057624,-1253.42,0.00015342,2]
[323035395,1713609057634,-500.0,0.00015342,2]
[323035396,1713609057644,-500.0,0.00015342,2]
[323035397,1713609057655,-629.5,0.00015342,2]
[323035398,1713609057665,-1698.54,0.00015342,2]
[323035399,1713609057676,-500.0,0.00015342,2]
[323035400,1713609057686,-977.28,0.00015342,2]
[323035401,1713609057696,-1258.99,0.00015342,2]
[323035402,1713609057706,-500.0,0.00015342,2]
[323035403,1713609057717,-500.0,0.00015342,2]
[323035404,1713609057727,-643.8163697,0.00015342,2]
[323035405,1713609057738,-562.17,0.00015342,2]
[323035406,1713609057748,-2059.27704,0.00015342,2]
[323035407,1713609057758,-500.0,0.00015342,2]
[323035408,1713609057769,-2239.0,0.00015342,2]
[323035409,1713609057779,-500.0,0.00015342,2]
[323035410,1713609057791,-2059.27704,0.00015342,2]
[323035411,1713609057802,-151.0,0.00015342,2]
[323035412,1713609057812,-621.38,0.00015342,2]
[323035413,1713609057823,-590.47,0.00015342,2]
[323035414,1713609057834,-500.0,0.00015342,2]
[323035415,1713609057844,-500.0,0.00015342,2]
[323035416,1713609057855,-500.0,0.00015342,2]
[323035417,1713609057865,-1284.53,0.00015342,2]
[323035418,1713609057877,-547.51,0.00015342,2]
[323035419,1713609057887,-649.80502173,0.00015342,2]
[323035420,1713609057898,-500.0,0.00015342,2]
[323035421,1713609057909,-500.0,0.00015342,2]
[323035422,1713609057920,-500.0,0.00015342,2]
[323035423,1713609057930,-1657.67,0.00015342,2]
[323035424,1713609057941,-610.53,0.00015342,2]
[323035425,1713609057952,-500.0,0.00015342,2]
[323035426,1713609057964,-500.0,0.00015342,2]
[323035427,1713609057975,-822.42,0.00015342,2]
[323035428,1713609057986,-500.0,0.00015342,2]
[323035429,1713609057997,-541.27,0.00015342,2]
[323035430,1713609058007,-500.0,0.00015342,2]
[323035431,1713609058018,-500.0,0.00015342,2]
[323035432,1713609058534,-1526.59,0.00015342,2]
[323035433,1713609058562,-500.0,0.00015342,2]
[323035434,1713609058580,-500.0,0.00015342,2]
[323035435,1713609058606,-203.455649,0.00015342,2]
[323035436,1713609058617,-162.437271,0.00015342,2]
[323035437,1713609058629,-500.0,0.00015342,2]
[323035438,1713609058638,-515.86,0.00015342,2]
[323035439,1713609058648,-151.0,0.00015342,2]
[323035440,1713609058657,-203.455649,0.00015342,2]
[323035441,1713609058667,-500.0,0.00015342,2]
[323035442,1713609058676,-1595.85,0.00015342,2]
[323035443,1713609058685,-729.48,0.00015342,2]
[323035444,1713609058696,-500.0,0.00015342,2]
[323035445,1713609058705,-1867.44,0.00015342,2]
[323035446,1713609058714,-500.0,0.00015342,2]
[323035447,1713609058723,-666.58,0.00015342,2]
[323035448,1713609058732,-500.0,0.00015342,2]
[323035449,1713609058742,-619.93,0.00015342,2]
[323035450,1713609058751,-151.0,0.00015342,2]
[323035451,1713609058761,-500.0,0.00015342,2]
[323035452,1713609058770,-500.0,0.00015342,2]
[323035453,1713609058780,-500.0,0.00015342,2]
[323035454,1713609058790,-500.0,0.00015342,2]
[323035455,1713609058800,-500.0,0.00015342,2]
[323035456,1713609058810,-653.31,0.00015342,2]
[323035457,1713609058819,-1134.35,0.00015342,2]
[323035458,1713609058829,-500.0,0.00015342,2]
[323035459,1713609058838,-500.0,0.00015342,2]
[323035460,1713609058847,-500.0,0.00015342,2]
[323035461,1713609058857,-1502.91,0.00015342,2]
[323035462,1713609058867,-500.0,0.00015342,2]
[323035463,1713609058877,-1014.28,0.00015342,2]
[323035464,1713609058886,-500.0,0.00015342,2]
[323035465,1713609058896,-500.0,0.00015342,2]
[323035466,1713609058905,-569.95,0.00015342,2]
[323035467,1713609058915,-500.0,0.00015342,2]
[323035468,1713609058925,-500.0,0.00015342,2]
[323035469,1713609058934,-500.0,0.00015342,2]
[323035470,1713609058943,-9054.19,0.00015342,2]
[323035471,1713609058953,-500.0,0.00015342,2]
[323035472,1713609058963,-500.0,0.00015342,2]
[323035473,1713609058972,-500.0,0.00015342,2]
[323035474,1713609058982,-540.71,0.00015342,2]
[323035475,1713609058991,-1417.69,0.00015342,2]
[323035476,1713609059001,-177.440691,0.00015342,2]
[323035477,1713609059010,-889.44,0.00015342,2]
[323035478,1713609059019,-2849.37,0.00015342,2]
[323035479,1713609059029,-566.5,0.00015342,2]
[323035480,1713609059039,-500.0,0.00015342,2]
[323035481,1713609059049,-151.0,0.00015342,2]
[323035482,1713609059058,-177.440691,0.00015342,2]
[323035483,1713609059102,-500.0,0.00015342,2]
[323035484,1713609059111,-1180.75,0.00015342,2]
[323035485,1713609059120,-500.0,0.00015342,2]
[323035486,1713609059130,-661.69,0.00015342,2]
[323035487,1713609059139,-500.0,0.00015342,2]
[323035488,1713609059148,-1356.86,0.00015342,2]
[323035489,1713609059158,-656.03,0.00015342,2]
[323035490,1713609059168,-500.0,0.00015342,2]
[323035491,1713609059177,-2631.33,0.00015342,2]
[323035492,1713609059187,-935.56,0.00015342,2]
[323035493,1713609059196,-262.72468,0.00015342,2]
[323035494,1713609059206,-939.9,0.00015342,2]
[323035495,1713609059215,-500.0,0.00015342,2]
[323035496,1713609059225,-848.86,0.00015342,2]
[323035497,1713609059234,-1931.68,0.00015342,2]
[323035498,1713609059245,-3077.56,0.00015342,2]
[323035499,1713609059255,-500.0,0.00015342,2]
[323035500,1713609059265,-500.0,0.00015342,2]
[323035501,1713609059276,-500.0,0.00015342,2]
[323035502,1713609059285,-500.0,0.00015342,2]
[323035503,1713609059295,-3908.42,0.00015342,2]
[323035504,1713609059304,-1317.67,0.00015342,2]
[323035505,1713609059314,-27081.06,0.00015342,2]
[323035506,1713609059323,-12684.05,0.00015342,2]
[323035507,1713609059332,-500.0,0.00015342,2]
[323035508,1713609059341,-1520.96,0.00015342,2]
[323035509,1713609059350,-3263.13,0.00015342,2]
[323035510,1713609059359,-500.0,0.00015342,2]
[323035511,1713609059369,-810.24,0.00015342,2]
[323035512,1713609059378,-381.97832416,0.00015342,2]
[323035513,1713609059387,-546.61,0.00015342,2]
[323035514,1713609059397,-500.0,0.00015342,2]
[323035515,1713609059406,-2085.08,0.00015342,2]
[323035516,1713609059415,-2641.3,0.00015342,2]
[323035517,1713609059423,-540.35,0.00015342,2]
[323035518,1713609059433,-1344.46,0.00015342,2]
[323035519,1713609059441,-500.0,0.00015342,2]
[323035520,1713609059451,-2700.56,0.00015342,2]
[323035521,1713609059459,-1640.37,0.00015342,2]
[323035522,1713609059472,-500.0,0.00015342,2]
[323035523,1713609059482,-586.3,0.00015342,2]
[323035524,1713609059491,-500.0,0.00015342,2]
[323035525,1713609059500,-917.2,0.00015342,2]
[323035526,1713609059509,-503.06,0.00015342,2]
[323035527,1713609059519,-500.0,0.00015342,2]
[323035528,1713609059528,-500.0,0.00015342,2]
[323035529,1713609059538,-5741.21,0.00015342,2]
[323035530,1713609059547,-1189.37,0.00015342,2]
[323035531,1713609059556,-1431.8,0.00015342,2]
[323035532,1713609059566,-16860.78,0.00015342,2]
[323035533,1713609059575,-500.0,0.00015342,2]
[323035534,1713609059584,-4052.79,0.00015342,2]
[323035535,1713609059593,-500.0,0.00015342,2]
[323035536,1713609059602,-500.0,0.00015342,2]
[323035537,1713609059611,-582.58,0.00015342,2]
[323035538,1713609059620,-1647.93,0.00015342,2]
[323035539,1713609059630,-2157.32,0.00015342,2]
[323035540,1713609059638,-662.13,0.00015342,2]
[323035541,1713609059648,-1011.59,0.00015342,2]
[323035542,1713609059658,-500.0,0.00015342,2]
[323035543,1713609059667,-1569.35,0.00015342,2]
[323035544,1713609059676,-500.0,0.00015342,2]
[323035545,1713609059686,-19282.4,0.00015342,2]
[323035546,1713609059695,-921.64,0.00015342,2]
[323035547,1713609059705,-500.0,0.00015342,2]
[323035548,1713609059714,-962.12,0.00015342,2]
[323035549,1713609059724,-408.65160492,0.00015342,2]
[323035550,1713609060790,-216.64616031,0.00013849,2]
[323035551,1713609060800,-216.64616031,0.0001387,2]
[323035552,1713609060874,-150.0,0.0001506,2]
[323035553,1713609060885,-500.0,0.00015068,2]
[323035554,1713609060894,-500.0,0.00015068,2]
[323035555,1713609060903,-345.95839508,0.00015342,2]
[323035556,1713609060913,-500.0,0.00015342,2]
[323035557,1713609060923,-3207.43257003,0.00015342,2]
[323035558,1713609060936,-1653.21742997,0.00015342,2]
[323035559,1713609060947,-2324.36,0.00015342,2]
[323035560,1713609060957,-500.0,0.00015342,2]
[323035561,1713609060967,-500.0,0.00015342,2]
[323035562,1713609060976,-500.0,0.00015342,2]
[323035563,1713609060985,-549.07,0.00015342,2]
[323035564,1713609060995,-1216.16,0.00015342,2]
[323035565,1713609061005,-619.92,0.00015342,2]
[323035566,1713609061015,-8072.26,0.00015342,2]
[323035567,1713609061025,-1451.29,0.00015342,2]
[323035568,1713609061035,-407.16126765,0.00015342,2]
[323035569,1713609061068,-92.83873235,0.00015342,2]
[323035570,1713609061079,-500.0,0.00015342,2]
[323035571,1713609061088,-1851.18,0.00015342,2]
[323035572,1713609061097,-133.42126764,0.00015342,2]
[323035573,1713609061111,-366.57873236,0.00015342,2]
[323035574,1713609061120,-500.0,0.00015342,2]
[323035575,1713609061130,-2115.25,0.00015342,2]
[323035576,1713609061139,-36.57126764,0.00015342,2]
[323035577,1713609061153,-114.42873236,0.00015342,2]
[323035578,1713609061163,-500.0,0.00015342,2]
[323035579,1713609061174,-44.46828335,0.00015342,2]
[323035580,1713609061345,-1769.95171665,0.00015342,2]
[323035581,1713609061355,-1122.97,0.00015342,2]
[323035582,1713609061364,-151.0,0.00015342,2]
[323035583,1713609061374,-500.0,0.00015342,2]
[323035584,1713609061383,-500.0,0.00015342,2]
[323035585,1713609061392,-1099.73,0.00015342,2]
[323035586,1713609061401,-584.25,0.00015342,2]
[323035587,1713609061410,-500.0,0.00015342,2]
[323035588,1713609061420,-500.0,0.00015342,2]
[323035589,1713609061429,-151.0,0.00015342,2]
[323035590,1713609061439,-500.0,0.00015342,2]
[323035591,1713609061448,-848.23,0.00015342,2]
[323035592,1713609061457,-500.0,0.00015342,2]
[323035593,1713609061468,-500.0,0.00015342,2]
[323035594,1713609061478,-500.0,0.00015342,2]
[323035595,1713609061487,-500.0,0.00015342,2]
[323035596,1713609061497,-636.97,0.00015342,2]
[323035597,1713609061506,-1832.03,0.00015342,2]
[323035598,1713609061516,-500.0,0.00015342,2]
[323035599,1713609061526,-538.01,0.00015342,2]
[323035600,1713609061535,-2946.08,0.00015342,2]
[323035601,1713609061547,-1028.6,0.00015342,2]
[323035602,1713609061557,-500.0,0.00015342,2]
[323035603,1713609061566,-500.0,0.00015342,2]
[323035604,1713609061575,-1318.33,0.00015342,2]
[323035605,1713609061585,-698.49,0.00015342,2]
[323035606,1713609061595,-500.0,0.00015342,2]
[323035607,1713609061604,-2174.23,0.00015342,2]
[323035608,1713609061613,-500.0,0.00015342,2]
[323035609,1713609061623,-500.0,0.00015342,2]
[323035610,1713609061631,-500.0,0.00015342,2]
[323035611,1713609061641,-1980.41,0.00015342,2]
[323035612,1713609061650,-500.0,0.00015342,2]
[323035613,1713609061660,-943.46,0.00015342,2]
[323035614,1713609061669,-500.0,0.00015342,2]
[323035615,1713609061678,-500.0,0.00015342,2]
[323035616,1713609061687,-1242.92,0.00015342,2]
[323035617,1713609061696,-663.83,0.00015342,2]
[323035618,1713609061705,-974.97,0.00015342,2]
[323035619,1713609061714,-713.45,0.00015342,2]
[323035620,1713609061723,-500.0,0.00015342,2]
[323035621,1713609061733,-500.0,0.00015342,2]
[323035622,1713609061742,-877.14,0.00015342,2]
[323035623,1713609061754,-2103.56,0.00015342,2]
[323035624,1713609061764,-262.793727,0.00015342,2]
[323035625,1713609061773,-3232.24,0.00015342,2]
[323035626,1713609061782,-876.94,0.00015342,2]
[323035627,1713609061792,-1213.925922,0.00015342,2]
[323035628,1713609061801,-514.95,0.00015342,2]
[323035629,1713609061810,-1072.62,0.00015342,2]
[323035630,1713609061820,-500.0,0.00015342,2]
[323035631,1713609061829,-500.0,0.00015342,2]
[323035632,1713609061838,-1213.925922,0.00015342,2]
[323035633,1713609061848,-860.58,0.00015342,2]
[323035634,1713609061857,-500.0,0.00015342,2]
[323035635,1713609061866,-500.0,0.00015342,2]
[323035636,1713609061877,-2683.09,0.00015342,2]
[323035637,1713609061886,-1351.91,0.00015342,2]
[323035638,1713609061896,-151.0,0.00015342,2]
[323035639,1713609061906,-500.0,0.00015342,2]
[323035640,1713609061915,-500.0,0.00015342,2]
[323035641,1713609061925,-560.82,0.00015342,2]
[323035642,1713609061934,-500.0,0.00015342,2]
[323035643,1713609061943,-500.0,0.00015342,2]
[323035644,1713609061953,-500.0,0.00015342,2]
[323035645,1713609061962,-500.0,0.00015342,2]
[323035646,1713609061971,-500.0,0.00015342,2]
[323035647,1713609061981,-1606.79,0.00015342,2]
[323035648,1713609061990,-903.96,0.00015342,2]
[323035649,1713609061999,-1972.44,0.00015342,2]
[323035650,1713609062009,-500.0,0.00015342,2]
[323035651,1713609062018,-1053.73,0.00015342,2]
[323035652,1713609062027,-5610.82,0.00015342,2]
[323035653,1713609062037,-728.31,0.00015342,2]
[323035654,1713609062047,-1093.22,0.00015342,2]
[323035655,1713609062056,-505.29,0.00015342,2]
[323035656,1713609062065,-500.0,0.00015342,2]
[323035657,1713609062074,-793.77,0.00015342,2]
[323035658,1713609062084,-3861.9,0.00015342,2]
[323035659,1713609062093,-500.0,0.00015342,2]
[323035660,1713609062102,-2333.49,0.00015342,2]
[323035661,1713609062111,-3012.29,0.00015342,2]
[323035662,1713609062121,-712.47,0.00015342,2]
[323035663,1713609062130,-500.0,0.00015342,2]
[323035664,1713609062140,-1597.21,0.00015342,2]
[323035665,1713609062149,-500.0,0.00015342,2]
[323035666,1713609062158,-3710.09,0.00015342,2]
[323035667,1713609062167,-790.08,0.00015342,2]
[323035668,1713609062176,-376.51502397,0.00015342,2]
[323035669,1713609062186,-1823.01,0.00015342,2]
[323035670,1713609062195,-1384.0,0.00015342,2]
[323035671,1713609062204,-255.473721,0.00015342,2]
[323035672,1713609062213,-1659.57,0.00015342,2]
[323035673,1713609062223,-417.22,0.00015342,2]
[323035674,1713609062231,-1014.46,0.00015342,2]
[323035675,1713609062241,-207.353561,0.00015342,2]
[323035676,1713609062251,-255.473721,0.00015342,2]
[323035677,1713609062262,-947.27,0.00015342,2]
[323035678,1713609062272,-557.42,0.00015342,2]
[323035679,1713609062282,-601.35,0.00015342,2]
[323035680,1713609062294,-2351.71,0.00015342,2]
[323035681,1713609062304,-1687.97,0.00015342,2]
[323035682,1713609062313,-1213.63,0.00015342,2]
[323035683,1713609062323,-4142.37,0.00015342,2]
[323035684,1713609062333,-500.0,0.00015342,2]
[323035685,1713609062342,-557.68,0.00015342,2]
[323035686,1713609062351,-991.44,0.00015342,2]
[323035687,1713609062360,-744.92,0.00015342,2]
[323035688,1713609062369,-2473.99,0.00015342,2]
[323035689,1713609062379,-151.0,0.00015342,2]
[323035690,1713609062388,-950.61,0.00015342,2]
[323035691,1713609062397,-500.0,0.00015342,2]
[323035692,1713609062407,-2380.32,0.00015342,2]
[323035693,1713609062416,-500.0,0.00015342,2]
[323035694,1713609062425,-1294.53,0.00015342,2]
[323035695,1713609062434,-769.77,0.00015342,2]
[323035696,1713609062444,-500.0,0.00015342,2]
[323035697,1713609062453,-2624.3,0.00015342,2]
[323035698,1713609062463,-827.34,0.00015342,2]
[323035699,1713609062478,-500.0,0.00015342,2]
[323035700,1713609062488,-500.0,0.00015342,2]
[323035701,1713609062497,-500.0,0.00015342,2]
[323035702,1713609062506,-14588.41,0.00015342,2]
[323035703,1713609062515,-500.0,0.00015342,2]
[323035704,1713609062524,-1724.3,0.00015342,2]
[323035705,1713609062534,-2210.85,0.00015342,2]
[323035706,1713609062544,-744.33,0.00015342,2]
[323035707,1713609062554,-2145.92,0.00015342,2]
[323035708,1713609062564,-1711.72,0.00015342,2]
[323035709,1713609062574,-1303.54,0.00015342,2]
[323035710,1713609062583,-590.59,0.00015342,2]
[323035711,1713609062592,-500.50235361,0.00015342,2]
[323035712,1713609062602,-500.0,0.00015342,2]
[323035713,1713609062611,-1281.4,0.00015342,2]
[323035714,1713609062621,-976.51,0.00015342,2]
[323035715,1713609062630,-684.79,0.00015342,2]
[323035716,1713609062639,-500.0,0.00015342,2]
[323035717,1713609062648,-500.0,0.00015342,2]
[323035718,1713609062657,-2630.16,0.00015342,2]
[323035719,1713609062666,-1232.45,0.00015342,2]
[323035720,1713609062676,-1013.01,0.00015342,2]
[323035721,1713609062685,-1214.56,0.00015342,2]
[323035722,1713609062694,-500.0,0.00015342,2]
[323035723,1713609062704,-744.57,0.00015342,2]
[323035724,1713609062713,-500.0,0.00015342,2]
[323035725,1713609062722,-500.0,0.00015342,2]
[323035726,1713609062732,-1578.55,0.00015342,2]
[323035727,1713609062741,-760.04,0.00015342,2]
[323035728,1713609062750,-609.91,0.00015342,2]
[323035729,1713609062760,-500.0,0.00015342,2]
[323035730,1713609062769,-500.0,0.00015342,2]
[323035731,1713609062779,-5723.32,0.00015342,2]
[323035732,1713609062788,-500.0,0.00015342,2]
[323035733,1713609062798,-865.99,0.00015342,2]
[323035734,1713609062807,-766.75,0.00015342,2]
[323035735,1713609062816,-500.0,0.00015342,2]
[323035736,1713609062825,-500.0,0.00015342,2]
[323035737,1713609062834,-2800.47,0.00015342,2]
[323035738,1713609062843,-500.0,0.00015342,2]
[323035739,1713609062852,-1867.17,0.00015342,2]
[323035740,1713609062861,-1228.07,0.00015342,2]
[323035741,1713609062870,-583.82,0.00015342,2]
[323035742,1713609062880,-500.0,0.00015342,2]
[323035743,1713609062889,-500.0,0.00015342,2]
[323035744,1713609062899,-500.0,0.00015342,2]
[323035745,1713609062909,-500.0,0.00015342,2]
[323035746,1713609062919,-500.0,0.00015342,2]
[323035747,1713609062928,-20018.39,0.00015342,2]
[323035748,1713609062937,-568.29,0.00015342,2]
[323035749,1713609062947,-1347.85,0.00015342,2]
[323035750,1713609062956,-871.62,0.00015342,2]
[323035751,1713609062966,-904.85,0.00015342,2]
[323035752,1713609062975,-3895.98,0.00015342,2]
[323035753,1713609062985,-560.29,0.00015342,2]
[323035754,1713609062994,-500.0,0.00015342,2]
[323035755,1713609063004,-737.04,0.00015342,2]
[323035756,1713609063013,-500.88,0.00015342,2]
[323035757,1713609063022,-585.09,0.00015342,2]
[323035758,1713609063031,-500.0,0.00015342,2]
[323035759,1713609063042,-500.0,0.00015342,2]
[323035760,1713609063052,-500.0,0.00015342,2]
[323035761,1713609063061,-2629.7,0.00015342,2]
[323035762,1713609063071,-500.0,0.00015342,2]
[323035763,1713609063081,-793.58,0.00015342,2]
[323035764,1713609063090,-500.0,0.00015342,2]
[323035765,1713609063100,-500.0,0.00015342,2]
[323035766,1713609063110,-3254.18,0.00015342,2]
[323035767,1713609063119,-4524.87,0.00015342,2]
[323035768,1713609063129,-1111.02,0.00015342,2]
[323035769,1713609063139,-500.0,0.00015342,2]
[323035770,1713609063148,-500.0,0.00015342,2]
[323035771,1713609063158,-1566.08,0.00015342,2]
[323035772,1713609063167,-5152.04,0.00015342,2]
[323035773,1713609063177,-500.0,0.00015342,2]
[323035774,1713609063187,-1807.16,0.00015342,2]
[323035775,1713609063197,-500.0,0.00015342,2]
[323035776,1713609063207,-500.0,0.00015342,2]
[323035777,1713609063217,-500.0,0.00015342,2]
[323035778,1713609063235,-499.1976,0.00015342,2]
[323035779,1713609063253,-3479.9,0.00015342,2]
[323035780,1713609063263,-500.0,0.00015342,2]
[323035781,1713609063273,-500.0,0.00015342,2]
[323035782,1713609063282,-1427.64,0.00015342,2]
[323035783,1713609063293,-500.0,0.00015342,2]
[323035784,1713609063302,-500.0,0.00015342,2]
[323035785,1713609063312,-500.0,0.00015342,2]
[323035786,1713609063475,-598.78,0.00015342,2]
[323035787,1713609063485,-7545.29,0.00015342,2]
[323035788,1713609063495,-500.0,0.00015342,2]
[323035789,1713609063504,-500.0,0.00015342,2]
[323035790,1713609063514,-3285.2,0.00015342,2]
[323035791,1713609063523,-500.0,0.00015342,2]
[323035792,1713609063532,-500.0,0.00015342,2]
[323035793,1713609063543,-500.0,0.00015353,2]
[323035794,1713609063554,-27261.84768329,0.0001539,2]
[323035795,1713609063563,-3000.0,0.0001543,2]
[323035796,1713609063572,-150.0,0.00015433,2]
[323035797,1713609063582,-11153.19435721,0.00015445,2]
[323035798,1713609063591,-161.275686,0.0001547,2]
[323035799,1713609063601,-200.0,0.00015486,2]
[323035800,1713609063611,-1000.0,0.00015486,2]
[323035801,1713609063621,-500.0,0.00015486,2]
[323035802,1713609063630,-200.0,0.00015486,2]
[323035803,1713609063639,-52250.28426996,0.000155,2]